{"text_format":"3","workbook":"xlsx","n_sheets":5,"sheets":["發票","客戶","發票 - 主要​​","發票詳細資料​​","關於此發票追蹤表"],"not_rendered":{"defined_names":8},"read":"whole","date_system":"1900"}

{"sheet":"發票","index":0,"n_rows":39,"n_cols":7,"rows_kept":39,"merged":[[1,1,1,2],[1,3,1,4],[1,5,1,6],[2,1,2,2],[2,3,2,4],[2,5,2,6],[3,3,3,4],[4,3,4,4],[5,3,5,4],[37,1,37,4],[38,1,38,4]]}
[null,"公司名稱"]
[null,"街道地址",null,"電話：電話號碼",null,"電子郵件"]
[null,"郵遞區號，縣/市",null,"傳真：傳真號碼",null,"網站"]
[null,"付款人：",{"$f":"IFERROR(VLOOKUP(VLOOKUP(範圍發票,發票主要[],2,FALSE),客戶清單[],3,TRUE),\"\")","v":"Contoso, Ltd"},{"$f":"\"電話:     \"&IFERROR(VLOOKUP(VLOOKUP(範圍發票,發票主要[],2,FALSE),客戶清單[],9,FALSE),\"\")","v":"電話:     432-555-0189"},null,"發票號碼：","3-456-2"]
[null,"地址：",{"$f":"IFERROR(IF((VLOOKUP(VLOOKUP(範圍發票,發票主要[],2,FALSE),客戶清單[],5,FALSE))=\"\",\"\",(VLOOKUP(VLOOKUP(範圍發票,發票主要[],2,FALSE),客戶清單[],5,FALSE))),\"\")","v":"核桃道 567 號"},{"$f":"\"傳真:     \"&IFERROR(VLOOKUP(VLOOKUP(範圍發票,發票主要[],2,FALSE),客戶清單[],11,FALSE),\"\")","v":"傳真:     432-555-0123"},null,"發票日期：",{"$f":"IFERROR(IF(VLOOKUP(範圍發票,發票主要[],3,FALSE)=\"\",\"\",VLOOKUP(範圍發票,發票主要[],3,FALSE)),\"\")","v":{"v":43686,"d":"4368600.00%"}}]
[null,null,{"$f":"IFERROR(VLOOKUP(VLOOKUP(範圍發票,發票主要[],2,FALSE),客戶清單[],6,FALSE)&\", \"& VLOOKUP(VLOOKUP(G4,發票主要[],2,FALSE),客戶清單[],7,FALSE)&\" \"&VLOOKUP(VLOOKUP(G4,發票主要[],2,FALSE),客戶清單[],8,FALSE),\"\")","v":"莫林, 密蘇里州 098765"},{"$f":"\"電子郵件: \"&IFERROR(VLOOKUP(VLOOKUP(範圍發票,發票主要[],2,FALSE),客戶清單[],10,FALSE),\"\")","v":"電子郵件: someone@example.com"}]
[null,{"$f":"\"發票事由：\"&IFERROR(VLOOKUP(範圍發票,發票主要[],4),\"\")","v":"發票事由：專案 2"}]
[null,"項目編號","描述","數量","單價","折扣","價格"]
[null,{"$f":"IFERROR(INDEX(發票詳細資料[],SMALL(IF(發票詳細資料[發票號碼]=範圍發票,ROW(發票詳細資料[])-ROW(發票詳細資料[#Headers])), ROW(1:1)), MATCH($B$8, 發票詳細資料[#Headers], 0)),\"\")","v":"Z4567"},{"$f":"IFERROR(INDEX(發票詳細資料[],SMALL(IF(發票詳細資料[發票號碼]=範圍發票,ROW(發票詳細資料[])-ROW(發票詳細資料[#Headers])), ROW(1:1)), MATCH($C$8, 發票詳細資料[#Headers], 0)),\"\")","v":"發票 3-456-2 資料 1"},{"$f":"IFERROR(INDEX(發票詳細資料[],SMALL(IF(發票詳細資料[發票號碼]=範圍發票,ROW(發票詳細資料[])-ROW(發票詳細資料[#Headers])), ROW(1:1)), MATCH($D$8, 發票詳細資料[#Headers], 0)),\"\")","v":39},{"$f":"IFERROR(INDEX(發票詳細資料[],SMALL(IF(發票詳細資料[發票號碼]=範圍發票,ROW(發票詳細資料[])-ROW(發票詳細資料[#Headers])), ROW(1:1)), MATCH($E$8, 發票詳細資料[#Headers], 0)),\"\")","v":{"v":5,"d":"NT$5.00"}},{"$f":"IFERROR(INDEX(發票詳細資料[],SMALL(IF(發票詳細資料[發票號碼]=範圍發票,ROW(發票詳細資料[])-ROW(發票詳細資料[#Headers])), ROW(1:1)), MATCH($F$8, 發票詳細資料[#Headers], 0)),\"\")","v":0},{"$f":"IFERROR((D9*E9)-F9,\"\")","v":{"v":195,"d":"NT$195.00"}}]
[null,{"$f":"IFERROR(INDEX(發票詳細資料[],SMALL(IF(發票詳細資料[發票號碼]=範圍發票,ROW(發票詳細資料[])-ROW(發票詳細資料[#Headers])), ROW(2:2)), MATCH($B$8, 發票詳細資料[#Headers], 0)),\"\")","v":"Z4568"},{"$f":"IFERROR(INDEX(發票詳細資料[],SMALL(IF(發票詳細資料[發票號碼]=範圍發票,ROW(發票詳細資料[])-ROW(發票詳細資料[#Headers])), ROW(2:2)), MATCH($C$8, 發票詳細資料[#Headers], 0)),\"\")","v":"發票 3-456-2 資料 2"},{"$f":"IFERROR(INDEX(發票詳細資料[],SMALL(IF(發票詳細資料[發票號碼]=範圍發票,ROW(發票詳細資料[])-ROW(發票詳細資料[#Headers])), ROW(2:2)), MATCH($D$8, 發票詳細資料[#Headers], 0)),\"\")","v":40},{"$f":"IFERROR(INDEX(發票詳細資料[],SMALL(IF(發票詳細資料[發票號碼]=範圍發票,ROW(發票詳細資料[])-ROW(發票詳細資料[#Headers])), ROW(2:2)), MATCH($E$8, 發票詳細資料[#Headers], 0)),\"\")","v":{"v":4,"d":"NT$4.00"}},{"$f":"IFERROR(INDEX(發票詳細資料[],SMALL(IF(發票詳細資料[發票號碼]=範圍發票,ROW(發票詳細資料[])-ROW(發票詳細資料[#Headers])), ROW(2:2)), MATCH($F$8, 發票詳細資料[#Headers], 0)),\"\")","v":{"v":5,"d":"NT$5.00"}},{"$f":"IFERROR((D10*E10)-F10,\"\")","v":{"v":155,"d":"NT$155.00"}}]
[null,{"$f":"IFERROR(INDEX(發票詳細資料[],SMALL(IF(發票詳細資料[發票號碼]=範圍發票,ROW(發票詳細資料[])-ROW(發票詳細資料[#Headers])), ROW(3:3)), MATCH($B$8, 發票詳細資料[#Headers], 0)),\"\")","v":"Z4569"},{"$f":"IFERROR(INDEX(發票詳細資料[],SMALL(IF(發票詳細資料[發票號碼]=範圍發票,ROW(發票詳細資料[])-ROW(發票詳細資料[#Headers])), ROW(3:3)), MATCH($C$8, 發票詳細資料[#Headers], 0)),\"\")","v":"發票 3-456-2 資料 3"},{"$f":"IFERROR(INDEX(發票詳細資料[],SMALL(IF(發票詳細資料[發票號碼]=範圍發票,ROW(發票詳細資料[])-ROW(發票詳細資料[#Headers])), ROW(3:3)), MATCH($D$8, 發票詳細資料[#Headers], 0)),\"\")","v":30},{"$f":"IFERROR(INDEX(發票詳細資料[],SMALL(IF(發票詳細資料[發票號碼]=範圍發票,ROW(發票詳細資料[])-ROW(發票詳細資料[#Headers])), ROW(3:3)), MATCH($E$8, 發票詳細資料[#Headers], 0)),\"\")","v":{"v":6,"d":"NT$6.00"}},{"$f":"IFERROR(INDEX(發票詳細資料[],SMALL(IF(發票詳細資料[發票號碼]=範圍發票,ROW(發票詳細資料[])-ROW(發票詳細資料[#Headers])), ROW(3:3)), MATCH($F$8, 發票詳細資料[#Headers], 0)),\"\")","v":{"v":7,"d":"NT$7.00"}},{"v":173,"d":"NT$173.00"}]
[null,{"$f":"IFERROR(INDEX(發票詳細資料[],SMALL(IF(發票詳細資料[發票號碼]=範圍發票,ROW(發票詳細資料[])-ROW(發票詳細資料[#Headers])), ROW(4:4)), MATCH($B$8, 發票詳細資料[#Headers], 0)),\"\")","v":"Z4570"},{"$f":"IFERROR(INDEX(發票詳細資料[],SMALL(IF(發票詳細資料[發票號碼]=範圍發票,ROW(發票詳細資料[])-ROW(發票詳細資料[#Headers])), ROW(4:4)), MATCH($C$8, 發票詳細資料[#Headers], 0)),\"\")","v":"發票 3-456-2 資料 4"},{"$f":"IFERROR(INDEX(發票詳細資料[],SMALL(IF(發票詳細資料[發票號碼]=範圍發票,ROW(發票詳細資料[])-ROW(發票詳細資料[#Headers])), ROW(4:4)), MATCH($D$8, 發票詳細資料[#Headers], 0)),\"\")","v":40},{"$f":"IFERROR(INDEX(發票詳細資料[],SMALL(IF(發票詳細資料[發票號碼]=範圍發票,ROW(發票詳細資料[])-ROW(發票詳細資料[#Headers])), ROW(4:4)), MATCH($E$8, 發票詳細資料[#Headers], 0)),\"\")","v":{"v":7,"d":"NT$7.00"}},{"$f":"IFERROR(INDEX(發票詳細資料[],SMALL(IF(發票詳細資料[發票號碼]=範圍發票,ROW(發票詳細資料[])-ROW(發票詳細資料[#Headers])), ROW(4:4)), MATCH($F$8, 發票詳細資料[#Headers], 0)),\"\")","v":0},{"v":280,"d":"NT$280.00"}]
[null,{"$f":"IFERROR(INDEX(發票詳細資料[],SMALL(IF(發票詳細資料[發票號碼]=範圍發票,ROW(發票詳細資料[])-ROW(發票詳細資料[#Headers])), ROW(5:5)), MATCH($B$8, 發票詳細資料[#Headers], 0)),\"\")","v":"Z4571"},{"$f":"IFERROR(INDEX(發票詳細資料[],SMALL(IF(發票詳細資料[發票號碼]=範圍發票,ROW(發票詳細資料[])-ROW(發票詳細資料[#Headers])), ROW(5:5)), MATCH($C$8, 發票詳細資料[#Headers], 0)),\"\")","v":"發票 3-456-2 資料 5"},{"$f":"IFERROR(INDEX(發票詳細資料[],SMALL(IF(發票詳細資料[發票號碼]=範圍發票,ROW(發票詳細資料[])-ROW(發票詳細資料[#Headers])), ROW(5:5)), MATCH($D$8, 發票詳細資料[#Headers], 0)),\"\")","v":10},{"$f":"IFERROR(INDEX(發票詳細資料[],SMALL(IF(發票詳細資料[發票號碼]=範圍發票,ROW(發票詳細資料[])-ROW(發票詳細資料[#Headers])), ROW(5:5)), MATCH($E$8, 發票詳細資料[#Headers], 0)),\"\")","v":{"v":4,"d":"NT$4.00"}},{"$f":"IFERROR(INDEX(發票詳細資料[],SMALL(IF(發票詳細資料[發票號碼]=範圍發票,ROW(發票詳細資料[])-ROW(發票詳細資料[#Headers])), ROW(5:5)), MATCH($F$8, 發票詳細資料[#Headers], 0)),\"\")","v":0},{"v":40,"d":"NT$40.00"}]
[null,{"$f":"IFERROR(INDEX(發票詳細資料[],SMALL(IF(發票詳細資料[發票號碼]=範圍發票,ROW(發票詳細資料[])-ROW(發票詳細資料[#Headers])), ROW(6:6)), MATCH($B$8, 發票詳細資料[#Headers], 0)),\"\")","v":"Z4572"},{"$f":"IFERROR(INDEX(發票詳細資料[],SMALL(IF(發票詳細資料[發票號碼]=範圍發票,ROW(發票詳細資料[])-ROW(發票詳細資料[#Headers])), ROW(6:6)), MATCH($C$8, 發票詳細資料[#Headers], 0)),\"\")","v":"發票 3-456-2 資料 6"},{"$f":"IFERROR(INDEX(發票詳細資料[],SMALL(IF(發票詳細資料[發票號碼]=範圍發票,ROW(發票詳細資料[])-ROW(發票詳細資料[#Headers])), ROW(6:6)), MATCH($D$8, 發票詳細資料[#Headers], 0)),\"\")","v":5},{"$f":"IFERROR(INDEX(發票詳細資料[],SMALL(IF(發票詳細資料[發票號碼]=範圍發票,ROW(發票詳細資料[])-ROW(發票詳細資料[#Headers])), ROW(6:6)), MATCH($E$8, 發票詳細資料[#Headers], 0)),\"\")","v":{"v":8,"d":"NT$8.00"}},{"$f":"IFERROR(INDEX(發票詳細資料[],SMALL(IF(發票詳細資料[發票號碼]=範圍發票,ROW(發票詳細資料[])-ROW(發票詳細資料[#Headers])), ROW(6:6)), MATCH($F$8, 發票詳細資料[#Headers], 0)),\"\")","v":0},{"v":40,"d":"NT$40.00"}]
[null,{"$f":"IFERROR(INDEX(發票詳細資料[],SMALL(IF(發票詳細資料[發票號碼]=範圍發票,ROW(發票詳細資料[])-ROW(發票詳細資料[#Headers])), ROW(7:7)), MATCH($B$8, 發票詳細資料[#Headers], 0)),\"\")","v":"Z4573"},{"$f":"IFERROR(INDEX(發票詳細資料[],SMALL(IF(發票詳細資料[發票號碼]=範圍發票,ROW(發票詳細資料[])-ROW(發票詳細資料[#Headers])), ROW(7:7)), MATCH($C$8, 發票詳細資料[#Headers], 0)),\"\")","v":"發票 3-456-2 資料 7"},{"$f":"IFERROR(INDEX(發票詳細資料[],SMALL(IF(發票詳細資料[發票號碼]=範圍發票,ROW(發票詳細資料[])-ROW(發票詳細資料[#Headers])), ROW(7:7)), MATCH($D$8, 發票詳細資料[#Headers], 0)),\"\")","v":70},{"$f":"IFERROR(INDEX(發票詳細資料[],SMALL(IF(發票詳細資料[發票號碼]=範圍發票,ROW(發票詳細資料[])-ROW(發票詳細資料[#Headers])), ROW(7:7)), MATCH($E$8, 發票詳細資料[#Headers], 0)),\"\")","v":{"v":6,"d":"NT$6.00"}},{"$f":"IFERROR(INDEX(發票詳細資料[],SMALL(IF(發票詳細資料[發票號碼]=範圍發票,ROW(發票詳細資料[])-ROW(發票詳細資料[#Headers])), ROW(7:7)), MATCH($F$8, 發票詳細資料[#Headers], 0)),\"\")","v":0},{"v":420,"d":"NT$420.00"}]
[null,{"$f":"IFERROR(INDEX(發票詳細資料[],SMALL(IF(發票詳細資料[發票號碼]=範圍發票,ROW(發票詳細資料[])-ROW(發票詳細資料[#Headers])), ROW(8:8)), MATCH($B$8, 發票詳細資料[#Headers], 0)),\"\")","v":"Z4574"},{"$f":"IFERROR(INDEX(發票詳細資料[],SMALL(IF(發票詳細資料[發票號碼]=範圍發票,ROW(發票詳細資料[])-ROW(發票詳細資料[#Headers])), ROW(8:8)), MATCH($C$8, 發票詳細資料[#Headers], 0)),\"\")","v":"發票 3-456-2 資料 8"},{"$f":"IFERROR(INDEX(發票詳細資料[],SMALL(IF(發票詳細資料[發票號碼]=範圍發票,ROW(發票詳細資料[])-ROW(發票詳細資料[#Headers])), ROW(8:8)), MATCH($D$8, 發票詳細資料[#Headers], 0)),\"\")","v":25},{"$f":"IFERROR(INDEX(發票詳細資料[],SMALL(IF(發票詳細資料[發票號碼]=範圍發票,ROW(發票詳細資料[])-ROW(發票詳細資料[#Headers])), ROW(8:8)), MATCH($E$8, 發票詳細資料[#Headers], 0)),\"\")","v":{"v":4,"d":"NT$4.00"}},{"$f":"IFERROR(INDEX(發票詳細資料[],SMALL(IF(發票詳細資料[發票號碼]=範圍發票,ROW(發票詳細資料[])-ROW(發票詳細資料[#Headers])), ROW(8:8)), MATCH($F$8, 發票詳細資料[#Headers], 0)),\"\")","v":0},{"v":100,"d":"NT$100.00"}]
[null,{"$f":"IFERROR(INDEX(發票詳細資料[],SMALL(IF(發票詳細資料[發票號碼]=範圍發票,ROW(發票詳細資料[])-ROW(發票詳細資料[#Headers])), ROW(9:9)), MATCH($B$8, 發票詳細資料[#Headers], 0)),\"\")","v":"Z4575"},{"$f":"IFERROR(INDEX(發票詳細資料[],SMALL(IF(發票詳細資料[發票號碼]=範圍發票,ROW(發票詳細資料[])-ROW(發票詳細資料[#Headers])), ROW(9:9)), MATCH($C$8, 發票詳細資料[#Headers], 0)),\"\")","v":"發票 3-456-2 資料 9"},{"$f":"IFERROR(INDEX(發票詳細資料[],SMALL(IF(發票詳細資料[發票號碼]=範圍發票,ROW(發票詳細資料[])-ROW(發票詳細資料[#Headers])), ROW(9:9)), MATCH($D$8, 發票詳細資料[#Headers], 0)),\"\")","v":5},{"$f":"IFERROR(INDEX(發票詳細資料[],SMALL(IF(發票詳細資料[發票號碼]=範圍發票,ROW(發票詳細資料[])-ROW(發票詳細資料[#Headers])), ROW(9:9)), MATCH($E$8, 發票詳細資料[#Headers], 0)),\"\")","v":{"v":7,"d":"NT$7.00"}},{"$f":"IFERROR(INDEX(發票詳細資料[],SMALL(IF(發票詳細資料[發票號碼]=範圍發票,ROW(發票詳細資料[])-ROW(發票詳細資料[#Headers])), ROW(9:9)), MATCH($F$8, 發票詳細資料[#Headers], 0)),\"\")","v":{"v":3,"d":"NT$3.00"}},{"v":32,"d":"NT$32.00"}]
[null,{"$f":"IFERROR(INDEX(發票詳細資料[],SMALL(IF(發票詳細資料[發票號碼]=範圍發票,ROW(發票詳細資料[])-ROW(發票詳細資料[#Headers])), ROW(10:10)), MATCH($B$8, 發票詳細資料[#Headers], 0)),\"\")","v":"Z4576"},{"$f":"IFERROR(INDEX(發票詳細資料[],SMALL(IF(發票詳細資料[發票號碼]=範圍發票,ROW(發票詳細資料[])-ROW(發票詳細資料[#Headers])), ROW(10:10)), MATCH($C$8, 發票詳細資料[#Headers], 0)),\"\")","v":"發票 3-456-2 資料 10"},{"$f":"IFERROR(INDEX(發票詳細資料[],SMALL(IF(發票詳細資料[發票號碼]=範圍發票,ROW(發票詳細資料[])-ROW(發票詳細資料[#Headers])), ROW(10:10)), MATCH($D$8, 發票詳細資料[#Headers], 0)),\"\")","v":80},{"$f":"IFERROR(INDEX(發票詳細資料[],SMALL(IF(發票詳細資料[發票號碼]=範圍發票,ROW(發票詳細資料[])-ROW(發票詳細資料[#Headers])), ROW(10:10)), MATCH($E$8, 發票詳細資料[#Headers], 0)),\"\")","v":{"v":1,"d":"NT$1.00"}},{"$f":"IFERROR(INDEX(發票詳細資料[],SMALL(IF(發票詳細資料[發票號碼]=範圍發票,ROW(發票詳細資料[])-ROW(發票詳細資料[#Headers])), ROW(10:10)), MATCH($F$8, 發票詳細資料[#Headers], 0)),\"\")","v":0},{"v":80,"d":"NT$80.00"}]
[null,{"$f":"IFERROR(INDEX(發票詳細資料[],SMALL(IF(發票詳細資料[發票號碼]=範圍發票,ROW(發票詳細資料[])-ROW(發票詳細資料[#Headers])), ROW(11:11)), MATCH($B$8, 發票詳細資料[#Headers], 0)),\"\")","v":"Z4577"},{"$f":"IFERROR(INDEX(發票詳細資料[],SMALL(IF(發票詳細資料[發票號碼]=範圍發票,ROW(發票詳細資料[])-ROW(發票詳細資料[#Headers])), ROW(11:11)), MATCH($C$8, 發票詳細資料[#Headers], 0)),\"\")","v":"發票 3-456-2 資料 11"},{"$f":"IFERROR(INDEX(發票詳細資料[],SMALL(IF(發票詳細資料[發票號碼]=範圍發票,ROW(發票詳細資料[])-ROW(發票詳細資料[#Headers])), ROW(11:11)), MATCH($D$8, 發票詳細資料[#Headers], 0)),\"\")","v":65},{"$f":"IFERROR(INDEX(發票詳細資料[],SMALL(IF(發票詳細資料[發票號碼]=範圍發票,ROW(發票詳細資料[])-ROW(發票詳細資料[#Headers])), ROW(11:11)), MATCH($E$8, 發票詳細資料[#Headers], 0)),\"\")","v":{"v":7,"d":"NT$7.00"}},{"$f":"IFERROR(INDEX(發票詳細資料[],SMALL(IF(發票詳細資料[發票號碼]=範圍發票,ROW(發票詳細資料[])-ROW(發票詳細資料[#Headers])), ROW(11:11)), MATCH($F$8, 發票詳細資料[#Headers], 0)),\"\")","v":0},{"v":455,"d":"NT$455.00"}]
[null,{"$f":"IFERROR(INDEX(發票詳細資料[],SMALL(IF(發票詳細資料[發票號碼]=範圍發票,ROW(發票詳細資料[])-ROW(發票詳細資料[#Headers])), ROW(12:12)), MATCH($B$8, 發票詳細資料[#Headers], 0)),\"\")","v":"Z4578"},{"$f":"IFERROR(INDEX(發票詳細資料[],SMALL(IF(發票詳細資料[發票號碼]=範圍發票,ROW(發票詳細資料[])-ROW(發票詳細資料[#Headers])), ROW(12:12)), MATCH($C$8, 發票詳細資料[#Headers], 0)),\"\")","v":"發票 3-456-2 資料 12"},{"$f":"IFERROR(INDEX(發票詳細資料[],SMALL(IF(發票詳細資料[發票號碼]=範圍發票,ROW(發票詳細資料[])-ROW(發票詳細資料[#Headers])), ROW(12:12)), MATCH($D$8, 發票詳細資料[#Headers], 0)),\"\")","v":44},{"$f":"IFERROR(INDEX(發票詳細資料[],SMALL(IF(發票詳細資料[發票號碼]=範圍發票,ROW(發票詳細資料[])-ROW(發票詳細資料[#Headers])), ROW(12:12)), MATCH($E$8, 發票詳細資料[#Headers], 0)),\"\")","v":{"v":1,"d":"NT$1.00"}},{"$f":"IFERROR(INDEX(發票詳細資料[],SMALL(IF(發票詳細資料[發票號碼]=範圍發票,ROW(發票詳細資料[])-ROW(發票詳細資料[#Headers])), ROW(12:12)), MATCH($F$8, 發票詳細資料[#Headers], 0)),\"\")","v":0},{"v":44,"d":"NT$44.00"}]
[null,{"$f":"IFERROR(INDEX(發票詳細資料[],SMALL(IF(發票詳細資料[發票號碼]=範圍發票,ROW(發票詳細資料[])-ROW(發票詳細資料[#Headers])), ROW(13:13)), MATCH($B$8, 發票詳細資料[#Headers], 0)),\"\")","v":""},{"$f":"IFERROR(INDEX(發票詳細資料[],SMALL(IF(發票詳細資料[發票號碼]=範圍發票,ROW(發票詳細資料[])-ROW(發票詳細資料[#Headers])), ROW(13:13)), MATCH($C$8, 發票詳細資料[#Headers], 0)),\"\")","v":""},{"$f":"IFERROR(INDEX(發票詳細資料[],SMALL(IF(發票詳細資料[發票號碼]=範圍發票,ROW(發票詳細資料[])-ROW(發票詳細資料[#Headers])), ROW(13:13)), MATCH($D$8, 發票詳細資料[#Headers], 0)),\"\")","v":""},{"$f":"IFERROR(INDEX(發票詳細資料[],SMALL(IF(發票詳細資料[發票號碼]=範圍發票,ROW(發票詳細資料[])-ROW(發票詳細資料[#Headers])), ROW(13:13)), MATCH($E$8, 發票詳細資料[#Headers], 0)),\"\")","v":""},{"$f":"IFERROR(INDEX(發票詳細資料[],SMALL(IF(發票詳細資料[發票號碼]=範圍發票,ROW(發票詳細資料[])-ROW(發票詳細資料[#Headers])), ROW(13:13)), MATCH($F$8, 發票詳細資料[#Headers], 0)),\"\")","v":""},""]
[null,{"$f":"IFERROR(INDEX(發票詳細資料[],SMALL(IF(發票詳細資料[發票號碼]=範圍發票,ROW(發票詳細資料[])-ROW(發票詳細資料[#Headers])), ROW(14:14)), MATCH($B$8, 發票詳細資料[#Headers], 0)),\"\")","v":""},{"$f":"IFERROR(INDEX(發票詳細資料[],SMALL(IF(發票詳細資料[發票號碼]=範圍發票,ROW(發票詳細資料[])-ROW(發票詳細資料[#Headers])), ROW(14:14)), MATCH($C$8, 發票詳細資料[#Headers], 0)),\"\")","v":""},{"$f":"IFERROR(INDEX(發票詳細資料[],SMALL(IF(發票詳細資料[發票號碼]=範圍發票,ROW(發票詳細資料[])-ROW(發票詳細資料[#Headers])), ROW(14:14)), MATCH($D$8, 發票詳細資料[#Headers], 0)),\"\")","v":""},{"$f":"IFERROR(INDEX(發票詳細資料[],SMALL(IF(發票詳細資料[發票號碼]=範圍發票,ROW(發票詳細資料[])-ROW(發票詳細資料[#Headers])), ROW(14:14)), MATCH($E$8, 發票詳細資料[#Headers], 0)),\"\")","v":""},{"$f":"IFERROR(INDEX(發票詳細資料[],SMALL(IF(發票詳細資料[發票號碼]=範圍發票,ROW(發票詳細資料[])-ROW(發票詳細資料[#Headers])), ROW(14:14)), MATCH($F$8, 發票詳細資料[#Headers], 0)),\"\")","v":""},""]
[null,{"$f":"IFERROR(INDEX(發票詳細資料[],SMALL(IF(發票詳細資料[發票號碼]=範圍發票,ROW(發票詳細資料[])-ROW(發票詳細資料[#Headers])), ROW(15:15)), MATCH($B$8, 發票詳細資料[#Headers], 0)),\"\")","v":""},{"$f":"IFERROR(INDEX(發票詳細資料[],SMALL(IF(發票詳細資料[發票號碼]=範圍發票,ROW(發票詳細資料[])-ROW(發票詳細資料[#Headers])), ROW(15:15)), MATCH($C$8, 發票詳細資料[#Headers], 0)),\"\")","v":""},{"$f":"IFERROR(INDEX(發票詳細資料[],SMALL(IF(發票詳細資料[發票號碼]=範圍發票,ROW(發票詳細資料[])-ROW(發票詳細資料[#Headers])), ROW(15:15)), MATCH($D$8, 發票詳細資料[#Headers], 0)),\"\")","v":""},{"$f":"IFERROR(INDEX(發票詳細資料[],SMALL(IF(發票詳細資料[發票號碼]=範圍發票,ROW(發票詳細資料[])-ROW(發票詳細資料[#Headers])), ROW(15:15)), MATCH($E$8, 發票詳細資料[#Headers], 0)),\"\")","v":""},{"$f":"IFERROR(INDEX(發票詳細資料[],SMALL(IF(發票詳細資料[發票號碼]=範圍發票,ROW(發票詳細資料[])-ROW(發票詳細資料[#Headers])), ROW(15:15)), MATCH($F$8, 發票詳細資料[#Headers], 0)),\"\")","v":""},""]
[null,{"$f":"IFERROR(INDEX(發票詳細資料[],SMALL(IF(發票詳細資料[發票號碼]=範圍發票,ROW(發票詳細資料[])-ROW(發票詳細資料[#Headers])), ROW(16:16)), MATCH($B$8, 發票詳細資料[#Headers], 0)),\"\")","v":""},{"$f":"IFERROR(INDEX(發票詳細資料[],SMALL(IF(發票詳細資料[發票號碼]=範圍發票,ROW(發票詳細資料[])-ROW(發票詳細資料[#Headers])), ROW(16:16)), MATCH($C$8, 發票詳細資料[#Headers], 0)),\"\")","v":""},{"$f":"IFERROR(INDEX(發票詳細資料[],SMALL(IF(發票詳細資料[發票號碼]=範圍發票,ROW(發票詳細資料[])-ROW(發票詳細資料[#Headers])), ROW(16:16)), MATCH($D$8, 發票詳細資料[#Headers], 0)),\"\")","v":""},{"$f":"IFERROR(INDEX(發票詳細資料[],SMALL(IF(發票詳細資料[發票號碼]=範圍發票,ROW(發票詳細資料[])-ROW(發票詳細資料[#Headers])), ROW(16:16)), MATCH($E$8, 發票詳細資料[#Headers], 0)),\"\")","v":""},{"$f":"IFERROR(INDEX(發票詳細資料[],SMALL(IF(發票詳細資料[發票號碼]=範圍發票,ROW(發票詳細資料[])-ROW(發票詳細資料[#Headers])), ROW(16:16)), MATCH($F$8, 發票詳細資料[#Headers], 0)),\"\")","v":""},""]
[null,{"$f":"IFERROR(INDEX(發票詳細資料[],SMALL(IF(發票詳細資料[發票號碼]=範圍發票,ROW(發票詳細資料[])-ROW(發票詳細資料[#Headers])), ROW(17:17)), MATCH($B$8, 發票詳細資料[#Headers], 0)),\"\")","v":""},{"$f":"IFERROR(INDEX(發票詳細資料[],SMALL(IF(發票詳細資料[發票號碼]=範圍發票,ROW(發票詳細資料[])-ROW(發票詳細資料[#Headers])), ROW(17:17)), MATCH($C$8, 發票詳細資料[#Headers], 0)),\"\")","v":""},{"$f":"IFERROR(INDEX(發票詳細資料[],SMALL(IF(發票詳細資料[發票號碼]=範圍發票,ROW(發票詳細資料[])-ROW(發票詳細資料[#Headers])), ROW(17:17)), MATCH($D$8, 發票詳細資料[#Headers], 0)),\"\")","v":""},{"$f":"IFERROR(INDEX(發票詳細資料[],SMALL(IF(發票詳細資料[發票號碼]=範圍發票,ROW(發票詳細資料[])-ROW(發票詳細資料[#Headers])), ROW(17:17)), MATCH($E$8, 發票詳細資料[#Headers], 0)),\"\")","v":""},{"$f":"IFERROR(INDEX(發票詳細資料[],SMALL(IF(發票詳細資料[發票號碼]=範圍發票,ROW(發票詳細資料[])-ROW(發票詳細資料[#Headers])), ROW(17:17)), MATCH($F$8, 發票詳細資料[#Headers], 0)),\"\")","v":""},""]
[null,{"$f":"IFERROR(INDEX(發票詳細資料[],SMALL(IF(發票詳細資料[發票號碼]=範圍發票,ROW(發票詳細資料[])-ROW(發票詳細資料[#Headers])), ROW(18:18)), MATCH($B$8, 發票詳細資料[#Headers], 0)),\"\")","v":""},{"$f":"IFERROR(INDEX(發票詳細資料[],SMALL(IF(發票詳細資料[發票號碼]=範圍發票,ROW(發票詳細資料[])-ROW(發票詳細資料[#Headers])), ROW(18:18)), MATCH($C$8, 發票詳細資料[#Headers], 0)),\"\")","v":""},{"$f":"IFERROR(INDEX(發票詳細資料[],SMALL(IF(發票詳細資料[發票號碼]=範圍發票,ROW(發票詳細資料[])-ROW(發票詳細資料[#Headers])), ROW(18:18)), MATCH($D$8, 發票詳細資料[#Headers], 0)),\"\")","v":""},{"$f":"IFERROR(INDEX(發票詳細資料[],SMALL(IF(發票詳細資料[發票號碼]=範圍發票,ROW(發票詳細資料[])-ROW(發票詳細資料[#Headers])), ROW(18:18)), MATCH($E$8, 發票詳細資料[#Headers], 0)),\"\")","v":""},{"$f":"IFERROR(INDEX(發票詳細資料[],SMALL(IF(發票詳細資料[發票號碼]=範圍發票,ROW(發票詳細資料[])-ROW(發票詳細資料[#Headers])), ROW(18:18)), MATCH($F$8, 發票詳細資料[#Headers], 0)),\"\")","v":""},""]
[null,{"$f":"IFERROR(INDEX(發票詳細資料[],SMALL(IF(發票詳細資料[發票號碼]=範圍發票,ROW(發票詳細資料[])-ROW(發票詳細資料[#Headers])), ROW(19:19)), MATCH($B$8, 發票詳細資料[#Headers], 0)),\"\")","v":""},{"$f":"IFERROR(INDEX(發票詳細資料[],SMALL(IF(發票詳細資料[發票號碼]=範圍發票,ROW(發票詳細資料[])-ROW(發票詳細資料[#Headers])), ROW(19:19)), MATCH($C$8, 發票詳細資料[#Headers], 0)),\"\")","v":""},{"$f":"IFERROR(INDEX(發票詳細資料[],SMALL(IF(發票詳細資料[發票號碼]=範圍發票,ROW(發票詳細資料[])-ROW(發票詳細資料[#Headers])), ROW(19:19)), MATCH($D$8, 發票詳細資料[#Headers], 0)),\"\")","v":""},{"$f":"IFERROR(INDEX(發票詳細資料[],SMALL(IF(發票詳細資料[發票號碼]=範圍發票,ROW(發票詳細資料[])-ROW(發票詳細資料[#Headers])), ROW(19:19)), MATCH($E$8, 發票詳細資料[#Headers], 0)),\"\")","v":""},{"$f":"IFERROR(INDEX(發票詳細資料[],SMALL(IF(發票詳細資料[發票號碼]=範圍發票,ROW(發票詳細資料[])-ROW(發票詳細資料[#Headers])), ROW(19:19)), MATCH($F$8, 發票詳細資料[#Headers], 0)),\"\")","v":""},""]
[null,{"$f":"IFERROR(INDEX(發票詳細資料[],SMALL(IF(發票詳細資料[發票號碼]=範圍發票,ROW(發票詳細資料[])-ROW(發票詳細資料[#Headers])), ROW(20:20)), MATCH($B$8, 發票詳細資料[#Headers], 0)),\"\")","v":""},{"$f":"IFERROR(INDEX(發票詳細資料[],SMALL(IF(發票詳細資料[發票號碼]=範圍發票,ROW(發票詳細資料[])-ROW(發票詳細資料[#Headers])), ROW(20:20)), MATCH($C$8, 發票詳細資料[#Headers], 0)),\"\")","v":""},{"$f":"IFERROR(INDEX(發票詳細資料[],SMALL(IF(發票詳細資料[發票號碼]=範圍發票,ROW(發票詳細資料[])-ROW(發票詳細資料[#Headers])), ROW(20:20)), MATCH($D$8, 發票詳細資料[#Headers], 0)),\"\")","v":""},{"$f":"IFERROR(INDEX(發票詳細資料[],SMALL(IF(發票詳細資料[發票號碼]=範圍發票,ROW(發票詳細資料[])-ROW(發票詳細資料[#Headers])), ROW(20:20)), MATCH($E$8, 發票詳細資料[#Headers], 0)),\"\")","v":""},{"$f":"IFERROR(INDEX(發票詳細資料[],SMALL(IF(發票詳細資料[發票號碼]=範圍發票,ROW(發票詳細資料[])-ROW(發票詳細資料[#Headers])), ROW(20:20)), MATCH($F$8, 發票詳細資料[#Headers], 0)),\"\")","v":""},""]
[null,{"$f":"IFERROR(INDEX(發票詳細資料[],SMALL(IF(發票詳細資料[發票號碼]=範圍發票,ROW(發票詳細資料[])-ROW(發票詳細資料[#Headers])), ROW(21:21)), MATCH($B$8, 發票詳細資料[#Headers], 0)),\"\")","v":""},{"$f":"IFERROR(INDEX(發票詳細資料[],SMALL(IF(發票詳細資料[發票號碼]=範圍發票,ROW(發票詳細資料[])-ROW(發票詳細資料[#Headers])), ROW(21:21)), MATCH($C$8, 發票詳細資料[#Headers], 0)),\"\")","v":""},{"$f":"IFERROR(INDEX(發票詳細資料[],SMALL(IF(發票詳細資料[發票號碼]=範圍發票,ROW(發票詳細資料[])-ROW(發票詳細資料[#Headers])), ROW(21:21)), MATCH($D$8, 發票詳細資料[#Headers], 0)),\"\")","v":""},{"$f":"IFERROR(INDEX(發票詳細資料[],SMALL(IF(發票詳細資料[發票號碼]=範圍發票,ROW(發票詳細資料[])-ROW(發票詳細資料[#Headers])), ROW(21:21)), MATCH($E$8, 發票詳細資料[#Headers], 0)),\"\")","v":""},{"$f":"IFERROR(INDEX(發票詳細資料[],SMALL(IF(發票詳細資料[發票號碼]=範圍發票,ROW(發票詳細資料[])-ROW(發票詳細資料[#Headers])), ROW(21:21)), MATCH($F$8, 發票詳細資料[#Headers], 0)),\"\")","v":""},""]
[null,{"$f":"IFERROR(INDEX(發票詳細資料[],SMALL(IF(發票詳細資料[發票號碼]=範圍發票,ROW(發票詳細資料[])-ROW(發票詳細資料[#Headers])), ROW(22:22)), MATCH($B$8, 發票詳細資料[#Headers], 0)),\"\")","v":""},{"$f":"IFERROR(INDEX(發票詳細資料[],SMALL(IF(發票詳細資料[發票號碼]=範圍發票,ROW(發票詳細資料[])-ROW(發票詳細資料[#Headers])), ROW(22:22)), MATCH($C$8, 發票詳細資料[#Headers], 0)),\"\")","v":""},{"$f":"IFERROR(INDEX(發票詳細資料[],SMALL(IF(發票詳細資料[發票號碼]=範圍發票,ROW(發票詳細資料[])-ROW(發票詳細資料[#Headers])), ROW(22:22)), MATCH($D$8, 發票詳細資料[#Headers], 0)),\"\")","v":""},{"$f":"IFERROR(INDEX(發票詳細資料[],SMALL(IF(發票詳細資料[發票號碼]=範圍發票,ROW(發票詳細資料[])-ROW(發票詳細資料[#Headers])), ROW(22:22)), MATCH($E$8, 發票詳細資料[#Headers], 0)),\"\")","v":""},{"$f":"IFERROR(INDEX(發票詳細資料[],SMALL(IF(發票詳細資料[發票號碼]=範圍發票,ROW(發票詳細資料[])-ROW(發票詳細資料[#Headers])), ROW(22:22)), MATCH($F$8, 發票詳細資料[#Headers], 0)),\"\")","v":""},""]
[null,{"$f":"IFERROR(INDEX(發票詳細資料[],SMALL(IF(發票詳細資料[發票號碼]=範圍發票,ROW(發票詳細資料[])-ROW(發票詳細資料[#Headers])), ROW(23:23)), MATCH($B$8, 發票詳細資料[#Headers], 0)),\"\")","v":""},{"$f":"IFERROR(INDEX(發票詳細資料[],SMALL(IF(發票詳細資料[發票號碼]=範圍發票,ROW(發票詳細資料[])-ROW(發票詳細資料[#Headers])), ROW(23:23)), MATCH($C$8, 發票詳細資料[#Headers], 0)),\"\")","v":""},{"$f":"IFERROR(INDEX(發票詳細資料[],SMALL(IF(發票詳細資料[發票號碼]=範圍發票,ROW(發票詳細資料[])-ROW(發票詳細資料[#Headers])), ROW(23:23)), MATCH($D$8, 發票詳細資料[#Headers], 0)),\"\")","v":""},{"$f":"IFERROR(INDEX(發票詳細資料[],SMALL(IF(發票詳細資料[發票號碼]=範圍發票,ROW(發票詳細資料[])-ROW(發票詳細資料[#Headers])), ROW(23:23)), MATCH($E$8, 發票詳細資料[#Headers], 0)),\"\")","v":""},{"$f":"IFERROR(INDEX(發票詳細資料[],SMALL(IF(發票詳細資料[發票號碼]=範圍發票,ROW(發票詳細資料[])-ROW(發票詳細資料[#Headers])), ROW(23:23)), MATCH($F$8, 發票詳細資料[#Headers], 0)),\"\")","v":""},""]
[null,{"$f":"IFERROR(INDEX(發票詳細資料[],SMALL(IF(發票詳細資料[發票號碼]=範圍發票,ROW(發票詳細資料[])-ROW(發票詳細資料[#Headers])), ROW(24:24)), MATCH($B$8, 發票詳細資料[#Headers], 0)),\"\")","v":""},{"$f":"IFERROR(INDEX(發票詳細資料[],SMALL(IF(發票詳細資料[發票號碼]=範圍發票,ROW(發票詳細資料[])-ROW(發票詳細資料[#Headers])), ROW(24:24)), MATCH($C$8, 發票詳細資料[#Headers], 0)),\"\")","v":""},{"$f":"IFERROR(INDEX(發票詳細資料[],SMALL(IF(發票詳細資料[發票號碼]=範圍發票,ROW(發票詳細資料[])-ROW(發票詳細資料[#Headers])), ROW(24:24)), MATCH($D$8, 發票詳細資料[#Headers], 0)),\"\")","v":""},{"$f":"IFERROR(INDEX(發票詳細資料[],SMALL(IF(發票詳細資料[發票號碼]=範圍發票,ROW(發票詳細資料[])-ROW(發票詳細資料[#Headers])), ROW(24:24)), MATCH($E$8, 發票詳細資料[#Headers], 0)),\"\")","v":""},{"$f":"IFERROR(INDEX(發票詳細資料[],SMALL(IF(發票詳細資料[發票號碼]=範圍發票,ROW(發票詳細資料[])-ROW(發票詳細資料[#Headers])), ROW(24:24)), MATCH($F$8, 發票詳細資料[#Headers], 0)),\"\")","v":""},""]
[null,{"$f":"IFERROR(INDEX(發票詳細資料[],SMALL(IF(發票詳細資料[發票號碼]=範圍發票,ROW(發票詳細資料[])-ROW(發票詳細資料[#Headers])), ROW(25:25)), MATCH($B$8, 發票詳細資料[#Headers], 0)),\"\")","v":""},{"$f":"IFERROR(INDEX(發票詳細資料[],SMALL(IF(發票詳細資料[發票號碼]=範圍發票,ROW(發票詳細資料[])-ROW(發票詳細資料[#Headers])), ROW(25:25)), MATCH($C$8, 發票詳細資料[#Headers], 0)),\"\")","v":""},{"$f":"IFERROR(INDEX(發票詳細資料[],SMALL(IF(發票詳細資料[發票號碼]=範圍發票,ROW(發票詳細資料[])-ROW(發票詳細資料[#Headers])), ROW(25:25)), MATCH($D$8, 發票詳細資料[#Headers], 0)),\"\")","v":""},{"$f":"IFERROR(INDEX(發票詳細資料[],SMALL(IF(發票詳細資料[發票號碼]=範圍發票,ROW(發票詳細資料[])-ROW(發票詳細資料[#Headers])), ROW(25:25)), MATCH($E$8, 發票詳細資料[#Headers], 0)),\"\")","v":""},{"$f":"IFERROR(INDEX(發票詳細資料[],SMALL(IF(發票詳細資料[發票號碼]=範圍發票,ROW(發票詳細資料[])-ROW(發票詳細資料[#Headers])), ROW(25:25)), MATCH($F$8, 發票詳細資料[#Headers], 0)),\"\")","v":""},""]
[{"$nulls":5},"發票小計",{"$f":"SUM(專案發票[價格])","v":{"v":2014,"d":"NT$2,014.00"}}]
[{"$nulls":5},"稅率",{"$f":"VLOOKUP(範圍發票,發票主要[],5)","v":{"v":0.0875,"d":"8.75%"}}]
[{"$nulls":5},"營業稅",{"$f":"G34*G35","v":{"v":176.225,"d":"NT$176.23"}}]
[{"$nulls":5},"其他",{"$f":"VLOOKUP(範圍發票,發票主要[],6)","v":0}]
[null,{"$f":"\"支票抬頭請一律填寫\"&公司名稱&\".\"","v":"支票抬頭請一律填寫公司名稱."},{"$nulls":3},"實收訂金",{"$f":"VLOOKUP(範圍發票,發票主要[],7)","v":0}]
[null,"合計應付帳款於 <#> 天內到期。逾期款項將收取每個月 <#>% 的服務費。",{"$nulls":3},"合計",{"$f":"(G34+G36+G37)-G38","v":{"v":2190.225,"d":"NT$2,190.23"}}]

{"sheet":"客戶","index":1,"n_rows":6,"n_cols":12,"rows_kept":6}
[]
[null,null,"客戶"]
[null,"查閱","公司編號","公司名稱","連絡人姓名","地址","城市","州","郵遞區號","電話","電子郵件","傳真"]
[null,{"$f":"C4& \" - \"&D4","v":"1 - Tailspin Toys "},1,"Tailspin Toys ","羅書成","櫻桃街 345 號","奧巴尼","南達科他州","123456","432-555-0178","someone@example.com","432-555-0187"]
[null,"2 - Contoso, Ltd",2,"Contoso, Ltd","楊棟材","核桃道 567 號","莫林","密蘇里州","098765","432-555-0189","someone@example.com","432-555-0123"]
[null,"合計",{"$f":"\"總客戶：\"&SUBTOTAL(103,客戶清單[公司編號])","v":"總客戶：2"}]

{"sheet":"發票 - 主要​​","index":2,"n_rows":6,"n_cols":11,"rows_kept":6}
[]
[null,"發票"]
[null,"發票號碼","公司","發票日期","專案描述","稅率","其他","訂金","詳細資料合計","發票合計","備註"]
[null,"3-456-1","1 - Tailspin Toys ",{"$f":"TODAY()","v":{"v":43676,"d":"4367600.00%"}},"專案 1",{"v":0.0875,"d":"8.75%"},{"v":100,"d":"NT$100.00"},{"v":100,"d":"NT$100.00"},{"$f":"SUMIF(發票詳細資料[發票號碼],\"=\"&發票主要[[#This Row],[發票號碼]],發票詳細資料[合計])","v":{"v":5200,"d":"NT$5,200.00"}},{"$f":"(發票主要[[#This Row],[詳細資料合計]]*(1+發票主要[[#This Row],[稅率]]))+發票主要[[#This Row],[其他]]-發票主要[[#This Row],[訂金]]","v":{"v":5654.999999999999,"d":"NT$5,655.00"}}]
[null,"3-456-2","2 - Contoso, Ltd",{"$f":"TODAY()+10","v":{"v":43686,"d":"4368600.00%"}},"專案 2",{"v":0.0875,"d":"8.75%"},null,null,{"$f":"SUMIF(發票詳細資料[發票號碼],\"=\"&發票主要[[#This Row],[發票號碼]],發票詳細資料[合計])","v":{"v":2014,"d":"NT$2,014.00"}},{"$f":"(發票主要[[#This Row],[詳細資料合計]]*(1+發票主要[[#This Row],[稅率]]))+發票主要[[#This Row],[其他]]-發票主要[[#This Row],[訂金]]","v":{"v":2190.225,"d":"NT$2,190.23"}}]
[null,"合計",{"$f":"\"發票總計：\"&SUBTOTAL(103,發票主要[發票號碼])","v":"發票總計：2"},{"$nulls":3},{"$f":"SUBTOTAL(109,發票主要[其他])","v":{"v":100,"d":"NT$100.00"}},{"$f":"SUBTOTAL(109,發票主要[訂金])","v":{"v":100,"d":"NT$100.00"}},{"$f":"SUBTOTAL(109,發票主要[詳細資料合計])","v":{"v":7214,"d":"NT$7,214.00"}},{"$f":"SUBTOTAL(109,發票主要[發票合計])","v":{"v":7845.2249999999985,"d":"NT$7,845.23"}}]

{"sheet":"發票詳細資料​​","index":3,"n_rows":40,"n_cols":8,"rows_kept":40}
[]
[null,"發票詳細資料​​"]
[null,"描述","發票號碼","項目編號","數量","單價","折扣","合計"]
[null,"發票 3-456-1 資料 1","3-456-1",1,1,{"v":1,"d":"NT$1.00"},{"v":1,"d":"NT$1.00"},{"$f":"(發票詳細資料[[#This Row],[數量]]*發票詳細資料[[#This Row],[單價]])-發票詳細資料[[#This Row],[折扣]]","v":{"v":0,"d":"NT$0.00"}}]
[null,"發票 3-456-1 資料 2","3-456-1",2,2,{"v":2,"d":"NT$2.00"},{"v":2,"d":"NT$2.00"},{"$f":"(發票詳細資料[[#This Row],[數量]]*發票詳細資料[[#This Row],[單價]])-發票詳細資料[[#This Row],[折扣]]","v":{"v":2,"d":"NT$2.00"}}]
[null,"發票 3-456-1 資料 3","3-456-1",3,3,{"v":3,"d":"NT$3.00"},{"v":3,"d":"NT$3.00"},{"$f":"(發票詳細資料[[#This Row],[數量]]*發票詳細資料[[#This Row],[單價]])-發票詳細資料[[#This Row],[折扣]]","v":{"v":6,"d":"NT$6.00"}}]
[null,"發票 3-456-1 資料 4","3-456-1",4,4,{"v":4,"d":"NT$4.00"},{"v":4,"d":"NT$4.00"},{"$f":"(發票詳細資料[[#This Row],[數量]]*發票詳細資料[[#This Row],[單價]])-發票詳細資料[[#This Row],[折扣]]","v":{"v":12,"d":"NT$12.00"}}]
[null,"發票 3-456-1 資料 5","3-456-1",5,5,{"v":5,"d":"NT$5.00"},{"v":5,"d":"NT$5.00"},{"$f":"(發票詳細資料[[#This Row],[數量]]*發票詳細資料[[#This Row],[單價]])-發票詳細資料[[#This Row],[折扣]]","v":{"v":20,"d":"NT$20.00"}}]
[null,"發票 3-456-1 資料 6","3-456-1",6,6,{"v":6,"d":"NT$6.00"},{"v":6,"d":"NT$6.00"},{"$f":"(發票詳細資料[[#This Row],[數量]]*發票詳細資料[[#This Row],[單價]])-發票詳細資料[[#This Row],[折扣]]","v":{"v":30,"d":"NT$30.00"}}]
[null,"發票 3-456-1 資料 7","3-456-1",7,7,{"v":7,"d":"NT$7.00"},{"v":7,"d":"NT$7.00"},{"$f":"(發票詳細資料[[#This Row],[數量]]*發票詳細資料[[#This Row],[單價]])-發票詳細資料[[#This Row],[折扣]]","v":{"v":42,"d":"NT$42.00"}}]
[null,"發票 3-456-1 資料 8","3-456-1",8,8,{"v":8,"d":"NT$8.00"},{"v":8,"d":"NT$8.00"},{"$f":"(發票詳細資料[[#This Row],[數量]]*發票詳細資料[[#This Row],[單價]])-發票詳細資料[[#This Row],[折扣]]","v":{"v":56,"d":"NT$56.00"}}]
[null,"發票 3-456-1 資料 9","3-456-1",9,9,{"v":9,"d":"NT$9.00"},{"v":9,"d":"NT$9.00"},{"$f":"(發票詳細資料[[#This Row],[數量]]*發票詳細資料[[#This Row],[單價]])-發票詳細資料[[#This Row],[折扣]]","v":{"v":72,"d":"NT$72.00"}}]
[null,"發票 3-456-1 資料 10","3-456-1",10,10,{"v":10,"d":"NT$10.00"},{"v":10,"d":"NT$10.00"},{"$f":"(發票詳細資料[[#This Row],[數量]]*發票詳細資料[[#This Row],[單價]])-發票詳細資料[[#This Row],[折扣]]","v":{"v":90,"d":"NT$90.00"}}]
[null,"發票 3-456-1 資料 11","3-456-1",11,11,{"v":11,"d":"NT$11.00"},{"v":11,"d":"NT$11.00"},{"$f":"(發票詳細資料[[#This Row],[數量]]*發票詳細資料[[#This Row],[單價]])-發票詳細資料[[#This Row],[折扣]]","v":{"v":110,"d":"NT$110.00"}}]
[null,"發票 3-456-1 資料 12","3-456-1",12,12,{"v":12,"d":"NT$12.00"},{"v":12,"d":"NT$12.00"},{"$f":"(發票詳細資料[[#This Row],[數量]]*發票詳細資料[[#This Row],[單價]])-發票詳細資料[[#This Row],[折扣]]","v":{"v":132,"d":"NT$132.00"}}]
[null,"發票 3-456-1 資料 13","3-456-1",13,13,{"v":13,"d":"NT$13.00"},{"v":13,"d":"NT$13.00"},{"$f":"(發票詳細資料[[#This Row],[數量]]*發票詳細資料[[#This Row],[單價]])-發票詳細資料[[#This Row],[折扣]]","v":{"v":156,"d":"NT$156.00"}}]
[null,"發票 3-456-1 資料 14","3-456-1",14,14,{"v":14,"d":"NT$14.00"},{"v":14,"d":"NT$14.00"},{"$f":"(發票詳細資料[[#This Row],[數量]]*發票詳細資料[[#This Row],[單價]])-發票詳細資料[[#This Row],[折扣]]","v":{"v":182,"d":"NT$182.00"}}]
[null,"發票 3-456-1 資料 15","3-456-1",15,15,{"v":15,"d":"NT$15.00"},{"v":15,"d":"NT$15.00"},{"$f":"(發票詳細資料[[#This Row],[數量]]*發票詳細資料[[#This Row],[單價]])-發票詳細資料[[#This Row],[折扣]]","v":{"v":210,"d":"NT$210.00"}}]
[null,"發票 3-456-1 資料 16","3-456-1",16,16,{"v":16,"d":"NT$16.00"},{"v":16,"d":"NT$16.00"},{"$f":"(發票詳細資料[[#This Row],[數量]]*發票詳細資料[[#This Row],[單價]])-發票詳細資料[[#This Row],[折扣]]","v":{"v":240,"d":"NT$240.00"}}]
[null,"發票 3-456-1 資料 17","3-456-1",17,17,{"v":17,"d":"NT$17.00"},{"v":17,"d":"NT$17.00"},{"$f":"(發票詳細資料[[#This Row],[數量]]*發票詳細資料[[#This Row],[單價]])-發票詳細資料[[#This Row],[折扣]]","v":{"v":272,"d":"NT$272.00"}}]
[null,"發票 3-456-1 資料 18","3-456-1",18,18,{"v":18,"d":"NT$18.00"},{"v":18,"d":"NT$18.00"},{"$f":"(發票詳細資料[[#This Row],[數量]]*發票詳細資料[[#This Row],[單價]])-發票詳細資料[[#This Row],[折扣]]","v":{"v":306,"d":"NT$306.00"}}]
[null,"發票 3-456-1 資料 19","3-456-1",19,19,{"v":19,"d":"NT$19.00"},{"v":19,"d":"NT$19.00"},{"$f":"(發票詳細資料[[#This Row],[數量]]*發票詳細資料[[#This Row],[單價]])-發票詳細資料[[#This Row],[折扣]]","v":{"v":342,"d":"NT$342.00"}}]
[null,"發票 3-456-1 資料 20","3-456-1",20,20,{"v":20,"d":"NT$20.00"},{"v":20,"d":"NT$20.00"},{"$f":"(發票詳細資料[[#This Row],[數量]]*發票詳細資料[[#This Row],[單價]])-發票詳細資料[[#This Row],[折扣]]","v":{"v":380,"d":"NT$380.00"}}]
[null,"發票 3-456-1 資料 21","3-456-1",21,21,{"v":21,"d":"NT$21.00"},{"v":21,"d":"NT$21.00"},{"$f":"(發票詳細資料[[#This Row],[數量]]*發票詳細資料[[#This Row],[單價]])-發票詳細資料[[#This Row],[折扣]]","v":{"v":420,"d":"NT$420.00"}}]
[null,"發票 3-456-1 資料 22","3-456-1",22,22,{"v":22,"d":"NT$22.00"},{"v":22,"d":"NT$22.00"},{"$f":"(發票詳細資料[[#This Row],[數量]]*發票詳細資料[[#This Row],[單價]])-發票詳細資料[[#This Row],[折扣]]","v":{"v":462,"d":"NT$462.00"}}]
[null,"發票 3-456-1 資料 23","3-456-1",23,23,{"v":23,"d":"NT$23.00"},{"v":23,"d":"NT$23.00"},{"$f":"(發票詳細資料[[#This Row],[數量]]*發票詳細資料[[#This Row],[單價]])-發票詳細資料[[#This Row],[折扣]]","v":{"v":506,"d":"NT$506.00"}}]
[null,"發票 3-456-1 資料 24","3-456-1",24,24,{"v":24,"d":"NT$24.00"},{"v":24,"d":"NT$24.00"},{"$f":"(發票詳細資料[[#This Row],[數量]]*發票詳細資料[[#This Row],[單價]])-發票詳細資料[[#This Row],[折扣]]","v":{"v":552,"d":"NT$552.00"}}]
[null,"發票 3-456-1 資料 25","3-456-1",25,25,{"v":25,"d":"NT$25.00"},{"v":25,"d":"NT$25.00"},{"$f":"(發票詳細資料[[#This Row],[數量]]*發票詳細資料[[#This Row],[單價]])-發票詳細資料[[#This Row],[折扣]]","v":{"v":600,"d":"NT$600.00"}}]
[null,"發票 3-456-2 資料 1","3-456-2","Z4567",39,{"v":5,"d":"NT$5.00"},null,{"$f":"(發票詳細資料[[#This Row],[數量]]*發票詳細資料[[#This Row],[單價]])-發票詳細資料[[#This Row],[折扣]]","v":{"v":195,"d":"NT$195.00"}}]
[null,"發票 3-456-2 資料 2","3-456-2","Z4568",40,{"v":4,"d":"NT$4.00"},{"v":5,"d":"NT$5.00"},{"$f":"(發票詳細資料[[#This Row],[數量]]*發票詳細資料[[#This Row],[單價]])-發票詳細資料[[#This Row],[折扣]]","v":{"v":155,"d":"NT$155.00"}}]
[null,"發票 3-456-2 資料 3","3-456-2","Z4569",30,{"v":6,"d":"NT$6.00"},{"v":7,"d":"NT$7.00"},{"$f":"(發票詳細資料[[#This Row],[數量]]*發票詳細資料[[#This Row],[單價]])-發票詳細資料[[#This Row],[折扣]]","v":{"v":173,"d":"NT$173.00"}}]
[null,"發票 3-456-2 資料 4","3-456-2","Z4570",40,{"v":7,"d":"NT$7.00"},null,{"$f":"(發票詳細資料[[#This Row],[數量]]*發票詳細資料[[#This Row],[單價]])-發票詳細資料[[#This Row],[折扣]]","v":{"v":280,"d":"NT$280.00"}}]
[null,"發票 3-456-2 資料 5","3-456-2","Z4571",10,{"v":4,"d":"NT$4.00"},null,{"$f":"(發票詳細資料[[#This Row],[數量]]*發票詳細資料[[#This Row],[單價]])-發票詳細資料[[#This Row],[折扣]]","v":{"v":40,"d":"NT$40.00"}}]
[null,"發票 3-456-2 資料 6","3-456-2","Z4572",5,{"v":8,"d":"NT$8.00"},null,{"$f":"(發票詳細資料[[#This Row],[數量]]*發票詳細資料[[#This Row],[單價]])-發票詳細資料[[#This Row],[折扣]]","v":{"v":40,"d":"NT$40.00"}}]
[null,"發票 3-456-2 資料 7","3-456-2","Z4573",70,{"v":6,"d":"NT$6.00"},null,{"$f":"(發票詳細資料[[#This Row],[數量]]*發票詳細資料[[#This Row],[單價]])-發票詳細資料[[#This Row],[折扣]]","v":{"v":420,"d":"NT$420.00"}}]
[null,"發票 3-456-2 資料 8","3-456-2","Z4574",25,{"v":4,"d":"NT$4.00"},null,{"$f":"(發票詳細資料[[#This Row],[數量]]*發票詳細資料[[#This Row],[單價]])-發票詳細資料[[#This Row],[折扣]]","v":{"v":100,"d":"NT$100.00"}}]
[null,"發票 3-456-2 資料 9","3-456-2","Z4575",5,{"v":7,"d":"NT$7.00"},{"v":3,"d":"NT$3.00"},{"$f":"(發票詳細資料[[#This Row],[數量]]*發票詳細資料[[#This Row],[單價]])-發票詳細資料[[#This Row],[折扣]]","v":{"v":32,"d":"NT$32.00"}}]
[null,"發票 3-456-2 資料 10","3-456-2","Z4576",80,{"v":1,"d":"NT$1.00"},null,{"$f":"(發票詳細資料[[#This Row],[數量]]*發票詳細資料[[#This Row],[單價]])-發票詳細資料[[#This Row],[折扣]]","v":{"v":80,"d":"NT$80.00"}}]
[null,"發票 3-456-2 資料 11","3-456-2","Z4577",65,{"v":7,"d":"NT$7.00"},null,{"$f":"(發票詳細資料[[#This Row],[數量]]*發票詳細資料[[#This Row],[單價]])-發票詳細資料[[#This Row],[折扣]]","v":{"v":455,"d":"NT$455.00"}}]
[null,"發票 3-456-2 資料 12","3-456-2","Z4578",44,{"v":1,"d":"NT$1.00"},null,{"$f":"(發票詳細資料[[#This Row],[數量]]*發票詳細資料[[#This Row],[單價]])-發票詳細資料[[#This Row],[折扣]]","v":{"v":44,"d":"NT$44.00"}}]

{"sheet":"關於此發票追蹤表","index":4,"n_rows":40,"n_cols":3,"rows_kept":40,"merged":[[3,1,3,7],[4,1,4,7],[5,1,5,7],[6,1,6,7],[7,2,7,7],[8,2,8,7],[9,2,9,7],[10,2,10,7],[11,2,11,7],[12,1,12,7],[13,2,13,3],[14,2,14,7],[15,1,15,7],[16,2,16,7],[17,2,17,7],[18,2,18,7],[19,2,19,7],[20,2,20,7],[21,2,21,7],[22,1,22,7],[23,1,23,7],[24,2,24,7],[25,2,25,7],[26,2,26,7],[27,2,27,7],[28,1,28,7],[29,1,29,7],[30,2,30,7],[31,2,31,7],[32,2,32,7],[33,2,33,7],[34,2,34,7],[36,2,36,7],[37,2,37,7],[38,2,38,7],[39,2,39,7]]}
[null,"關於此發票追蹤表"]
[]
[]
[null,"此發票追蹤表是專為維護客戶的歷程記錄、發票和發票詳細資料所設計，讓您不需要建立多個檔案就能儲存多個發票。您也可以使用此發票追蹤表來分析之前開立發票的資料。例如，您可以檢視某個客戶、某個特定專案的所有發票，或檢視上個月、去年等時間的所有發票。"]
[null,"開始使用之前，請先看一下提供的範例資料。在 [發票] 工作表上，選取 [發票號碼] (儲存格 L8) 右側的儲存格，下拉式清單會隨即出現。選取下拉式箭號，然後選取發票範例。請注意所有發票資訊如何自動變化，反映選取的發票。現在，查看 [客戶]、[發票 - 主要] 和 [發票詳細資料] 工作表。這些各個工作表都會向 [發票] 提供資訊，而您所做的任何變更將會自動更新。 "]
[null,"如何開始使用？"]
[null,"使用下列步驟修改 [發票] 工作表，以反映您的公司資訊："]
[null,"1.","瀏覽到 [發票] 工作表，然後在 [校閱] 索引標籤的 [保護] 群組中，選取 [取消保護工作表]。 "]
[null,null,"備註：[發票] 工作表已受到保護，可協助避免發生無意間的變更，因為如先前所述，此工作表上大多數的資料是從活頁簿中的所有其他工作表提取。 "]
[null,"2.","輸入公司名稱、街道地址、縣/市、郵遞區號、電子郵件地址、網站等資訊，藉此自訂發票標頭。在發票底部 (第 43 列)，修改付款指示。 "]
[null,null,"重要！請勿修改計費或發票資訊。如 [關於此發票追蹤表] 區段中所述，所有這些儲存格都有會自動更新發票的公式。  "]
[null,"3.","(選用) 修改整個活頁簿的色彩：在 [頁面配置] 索引標籤的 [佈景主題] 群組中，選取 [色彩]，然後從色彩庫中選取其他佈景主題色彩集。 "]
[null,"祕訣：建立與您的公司品牌相符的自訂佈景主題色彩集！若要這麼做，請在 [頁面配置] 索引標籤的 [佈景主題] 群組中，選取 [色彩]，然後選取 [自訂色彩]。如需如何建立自訂色彩集的詳細資訊，請檢視下列 [說明] 主題： "]
[null,null,"自訂文件佈景主題。"]
[null,"4.","在您做出想要的變更之後，請返回 [發票] 工作表，然後在 [校閱] 索引標籤的 [變更] 群組中，選取 [保護工作表]，然後選取 [確定]。當 [發票] 工作表受到保護時，含有 [發票號碼] 下拉式清單的儲存格是您唯一可以選取的儲存格。"]
[null,"如何建立發票？"]
[null,"1.","在 [客戶] 工作表上，輸入客戶資訊，例如公司名稱和地址。請注意，[公司編號] 是很重要的項目，因為它可為每個公司提供用於整個發票追蹤表的唯一識別碼。此外，請注意您只需要新增一次公司。若是屬於同一間公司的後續發票，可略過此步驟。 "]
[null,null,"備註：如果您將同一個編號指派給多個公司，或多次輸入同一個公司名稱，項目將會變成紅色，提醒您發生重複的情形。 "]
[null,"2.","在 [發票 - 主要] 工作表上，輸入發票的主要資訊，例如 [發票號碼]、[發票日期] 和 [專案描述]。和 [公司編號] 一樣， [發票號碼] 是很重要的項目，因為它可為每個發票提供唯一識別碼，且可用於整個發票追蹤表。[公司] 是另一個很重要的項目。當您從提供的下拉式清單選取公司時，它就會將您的發票與該公司建立關聯。接著，當您選取 [發票] 工作表上的 [發票號碼] 時，該公司的資訊 (例如公司名稱和地址) 就會自動填入到 [發票] 上。"]
[null,null,"備註：如果您將同一個編號指派給多個 [發票]，項目將會變成紅色，提醒您發生重複的情形。 "]
[null,"3.","在 [發票詳細資料] 工作表上，輸入發票的詳細資料，例如 [項目描述]、[項目編號]、[數量] 和 [單價]。[發票號碼] 下拉式清單可提供您已在 [發票 - 主要] 工作表上輸入的發票清單，以便加速資料輸入。與前述步驟中的 [公司編號] 類似，[發票號碼] 會將該詳細資料項目與某個特定發票建立關聯。當您從 [發票號碼] 下拉式清單中選取 [發票] 工作表上的 [發票號碼] 時，該發票的相關發票詳細資料項目會隨即顯示。"]
[null,null,"備註：每個發票限定只能有 25 個詳細資料項目。如果新增的項目超過 25 個，所有對應項目將會變成紅色，以提醒您這項限制。如果您有超過 25 個發票項目，您將需要建立第二個發票。 "]
[null,"如何新增更多客戶、發票和發票詳細資料？"]
[null,"[客戶]、[發票] 和 [發票詳細資料] 的資料會儲存在 Excel 表格中。當您為表格新增列時，新增的列將會自動設定格式，並將複製任何計算。若要新增表格列，請執行下列其中一個動作："]
[null,"● ","如果表格沒有 [合計] 列，請於表格下方開始輸入，表格會在您按 Enter 或 Tab 鍵時自動擴充。"]
[null,"● ","將儲存格指標置於 [合計] 列上方的最後一個儲存格 (例如 [發票] 表格的最後一個發票的 [備註] 儲存格中)，然後按 Tab。"]
[null,"● ","在 [常用] 索引標籤的 [儲存格] 群組中，選取 [插入]，然後選取 [上方表格列] 或 [下方表格列]。 "]
[null,"● ","在表格右下角，將滑鼠置於表格縮放控點並向下拖曳，以增加可用的表格列數。"]
[null,"如何分析發票詳細資料？"]
[null,"如 [關於此發票追蹤表] 區段中所述，輸入多個發票之後，您可以檢視某個特定客戶、專案、指定日期間隔等條件的所有發票清單。您可以使用 [篩選] 來達成這種類型的分析，讓您能夠快速縮小資料清單的範圍。若要存取 [客戶]、[發票] 或 [發票詳細資料] 表格上的 [篩選]，請選取任何表格欄位名稱旁的下拉式箭號。[篩選] 窗格會隨即顯示，提供您各種篩選選項。以下是可協助您開始使用的一些篩選範例："]
[null,"● ","若要檢視您已針對某個特定客戶開立發票的總金額：在 [發票 - 主要] 工作表上，選取 [公司編號] 欄位右側的下拉式箭號。在 [篩選] 窗格中，按一下 [全選] 以取消選取所有公司，選取想要的公司，然後選取 [確定]。 "]
[null,null,"祕訣：在 [篩選] 窗格中，您也可以在 [搜尋] 文字方塊中輸入客戶名稱，以快速搜尋可用的清單。"]
[null,"● ","若要檢視某個特定客戶和特定專案的所有發票：首先，請使用上述範例提供的步驟，篩選您想要的客戶。接著，選取 [專案編號] 右側的下拉式箭號。在 [篩選] 窗格中，選取想要的一或多個專案，然後選取 [確定]。 "]
[null,"● ","若要檢視上個月的所有發票：在 [發票 - 主要] 工作表上，選取 [發票日期] 欄位右側的下拉式箭號，指向 [日期篩選]，然後選取 [上個月]。"]
[null,"● ","若要檢視具有相同區碼的所有客戶：在 [客戶] 工作表上，選取 [電話] 欄位右側的下拉式箭號。在 [篩選] 窗格中，按一下 [搜尋] 文字方塊，輸入區碼，然後選取 [確定]。 "]
[null,"篩選祕訣"]
[null,"● ","如果表格有 [合計] 列 (例如 [客戶] 和 [發票])，計算的合計只會反映在您篩選的清單上。"]
[null,"● ","在單一欄位或多個欄位間使用多個篩選，以微調您的結果。"]
[null,"● ","若要清除單一篩選，請選取先前已篩選的欄的下拉式箭號，然後選取 [清除 <欄位名稱> 的篩選]。"]
[null,"● ","若要同時清除多個篩選，請將儲存格指標置於表格中，在 [常用] 索引標籤的 [編輯] 群組中選取 [排序與篩選]，然後選取 [清除]。"]